Cogmind - Beta 14 @@@ ROGUE MODE // 2024.09.03 @ 13:46:33 Player: DZKane Result: Destroyed by LR-V05(R) with Subdweller Laser Performance ------------- Evolutions (0) 0 Regions Visited (2) 400 Robots Destroyed (29) 145 Value Destroyed (654) 654 Prototype IDs (2) 40 Alien Tech Used (0) 0 Bonus (16) 16 TOTAL SCORE: 1255 Bonus ------- High Alert Combat Kills 16 Cogmind --------- Core Integrity 0/250 Matter 279/300 Energy 250/250 System Corruption 0% Temperature Cool (6) Movement Treading (480) Ox4 Location -10/Subcaves Parts ------- > --- POWER (1) -------- Ion Engine > --- PROPULSION (2) --- Light Treads Compact Wheel > --- UTILITY (2) ------ Huge Storage Unit > --- WEAPON (2) ------- Light Assault Rifle Subdweller Machine Gun > --- INVENTORY (25) --- Light Ion Engine Light Ion Engine Light Treads Light Treads Light Treads Aluminum Leg Aluminum Leg Compact Wheel Heat Sink Subdweller Optics Hacking Suite EM Pulse Gun Assault Rifle Light Assault Rifle Light Assault Rifle Datajack Peak State ------------ > --- POWER ------------ Ion Engine > --- PROPULSION ------- Light Treads Compact Wheel > --- UTILITY ---------- Huge Storage Unit Light Armor Plating > --- WEAPON ----------- Assault Rifle Assault Rifle > --- INVENTORY -------- Light Ion Engine Light Treads Aluminum Leg Aluminum Leg Compact Wheel Heat Sink Large Matter Pod EM Pulse Gun Light Assault Rifle Datajack [Rating: 8] Favorites ----------- Power Ion Engine Engine Ion Engine Propulsion Light Treads Treads Light Treads Wheel Compact Wheel Utility Huge Storage Unit Storage Huge Storage Unit Protection Light Armor Plating Weapon Assault Rifle Ballistic Gun Assault Rifle Build | -11 -10 -10 ------- Run | Yrd Mat Sub Slots Evolved . | . . . Power . | . . . Propulsion . | . . . Utility . | . . . Weapon . | . . . Parts Attached 19 | 6 10 3 Power 3 | 1 2 . Engine 3 | 1 2 . Core . | . . . Reactor . | . . . Propulsion 5 | 2 2 1 Treads 3 | 2 . 1 Leg . | . . . Wheel 2 | . 2 . Hover . | . . . Flight . | . . . Utility 5 | 1 4 . Device . | . . . Storage 4 | 1 3 . Processor . | . . . Hackware . | . . . Protection 1 | . 1 . Artifact . | . . . Weapon 6 | 2 2 2 Energy Gun . | . . . Energy Cannon . | . . . Ballistic Gun 6 | 2 2 2 Ballistic Cannon . | . . . Launcher . | . . . Special Weapon . | . . . Impact Weapon . | . . . Slashing Weapon . | . . . Piercing Weapon . | . . . Special Melee Weapon . | . . . Unidentified Prototypes . | . . . Parts Lost 6 | . 3 3 Power 1 | . 1 . Propulsion 2 | . 1 1 Utility 2 | . 1 1 Weapon 1 | . . 1 Highest Loss Streak 3 | . 2 3 To Critical Strikes . | . . . Average Slot Usage (%) 97 | . 98 92 Engine 13 | . 13 14 Treads 14 | . 14 13 Wheel 13 | . 13 14 Storage 23 | . 23 21 Protection 2 | . 2 . Ballistic Gun 28 | . 28 28 Peak Build Rating 8 | 6 8 8 Average Rating 7 | 5 7 7 On Entrance 4 | . 6 8 Naked Turns . | . . . Heaviest Build 168 | 12 168 91 Greatest Support 40 | 40 40 16 Greatest Overweight (x) 10 | 1 10 5 Average Overweight (x) 6 | . 7 5 Largest Inventory Capacity 25 | 8 25 25 Average Capacity 24 | 7 24 25 Most Carried 17 | 6 17 16 Average Carried 14 | 4 14 15 Final Capacity 25 | 8 25 25 Final Carried 16 | 6 16 16 Class Distribution -------------------- 94% | Mutant 5% | Scavenger-Mutant Dominant Class ---------------- Mutant | -10/Materials Mutant | -10/Subcaves Resources | -11 -10 -10 ----------- Run | Yrd Mat Sub Matter Collected 895 | 278 591 26 Remotely . | . . . Salvage Created 1106 | 68 903 135 Parts 72 | 2 62 8 Haulers Intercepted 2 | . 2 . Recyclers Shooed 2 | . 2 . Parts Field Recycled . | . . . Retrieved Matter . | . . . Parts Self-Destructed 3 | . . 3 Prevented . | . . . Kills | -11 -10 -10 ------- Run | Yrd Mat Sub Combat Hostiles Destroyed 19 | . 16 3 Guns 19 | . 16 3 Classes Destroyed 8 | 1 6 1 Worker 1 | . 1 . Hauler 2 | . 2 . Recycler 3 | 1 2 . Operator 2 | . 2 . Watcher 2 | . 2 . Swarmer 5 | . 5 . Grunt 11 | . 11 . Subdweller 3 | . . 3 Best Kill Streak 4 | 1 4 2 Combat Bots Only 4 | . 4 2 Max Kills in Single Turn 2 | 1 2 1 Gunslinging . | . . . Exploded . | . . . Melee . | . . . Uniques/NPCs Destroyed . | . . . Combat | -11 -10 -10 -------- Run | Yrd Mat Sub Hostile Shots Fired 123 | . 90 33 Missed 33 | . 27 6 Damage Taken 1197 | . 633 564 Core 259 | . 93 166 Absorbed by Shields . | . . . Core Remaining (%) 100 | 100 . . Volleys Fired 90 | 3 66 21 Largest 2 | 2 2 2 Hottest 50 | 40 40 50 Shots Fired 178 | 6 132 40 Gun 178 | 6 132 40 Cannon . | . . . Launcher . | . . . Special . | . . . Kinetic 178 | 6 132 40 Thermal . | . . . Explosive . | . . . Electromagnetic . | . . . Robot Hit Streak 22 | 3 14 22 Robot Miss Streak 3 | 1 2 3 Penetration Max . | . . . Secondary Targets 3 | . 2 1 Max Gunslinging Chain 1 | . 1 1 Shots Hit Robots 128 | 4 91 33 Core Hits 52 | 2 41 9 Critical Kills . | . . . Critical Parts Destroyed 1 | 1 . . Critical Strikes 3 | 1 . 2 Destroy 3 | 1 . 2 Melee Attacks . | . . . Impact . | . . . Slashing . | . . . Piercing . | . . . Sneak Attacks . | . . . Combat Hostiles . | . . . Follow-up Attacks . | . . . Damage Inflicted 1546 | 49 1170 327 Guns 1546 | 49 1170 327 Cannons . | . . . Explosions . | . . . Melee . | . . . Ramming . | . . . Kinetic 1546 | 49 1170 327 Thermal . | . . . Explosive . | . . . Electromagnetic . | . . . Impact . | . . . Slashing . | . . . Piercing . | . . . Highest Corruption . | . . . Average Corruption . | . . . Corruption Purged . | . . . Corruption Blocked . | . . . Overload Shots . | . . . Overflow Damage . | . . . Projectiles . | . . . Explosions . | . . . Melee . | . . . Knockbacks . | . . . Impact . | . . . Kinetic . | . . . Secondary . | . . . Self-Inflicted Damage . | . . . Shots . | . . . Rammed . | . . . Targets Rammed . | . . . Kicked . | . . . Crushed . | . . . Highest Temperature 16 | . 16 . Average Temperature 4 | . 4 . Received Heat Transfer 267 | . 255 12 Siege Activations . | . . . Robots Corrupted . | . . . Combat Hostiles . | . . . Parts Fried . | . . . Impact Corruptions . | . . . Robots Melted . | . . . Combat Hostiles . | . . . Parts Melted . | . . . Heat Transferred . | . . . Parts Sabotaged . | . . . Parts Stolen . | . . . Parts Stripped . | . . . Power Chain Reactions . | . . . Alert | -11 -10 -10 ------- Run | Yrd Mat Sub Peak Influence 434 | 5 434 . Initial 3 | . 3 . Average 153 | 1 162 . Maximum Alert Level 2 | . 2 . Low Security (%) 57 | 100 55 . Level 1 40 | . 42 . Level 2 2 | . 2 . Level 3 . | . . . Level 4 . | . . . Level 5 . | . . . High Security . | . . . Max Security . | . . . Squads Dispatched 5 | . 5 . Investigation 3 | . 3 . Extermination . | . . . Reinforcement 2 | . 2 . Assault . | . . . Garrison . | . . . Intercept . | . . . Searches Triggered . | . . . Construction Impeded . | . . . Haulers Reinforced . | . . . Active Scanning Responses . | . . . Cargo Convoy Interrupts . | . . . Stealth | -11 -10 -10 --------- Run | Yrd Mat Sub Distress Signals 2 | . 2 . Communications Jammed . | . . . Distress Signals . | . . . Times Spotted 31 | . 27 4 Peak Tracking Total 4 | . 4 2 Tactical Retreats 2 | . 2 . Traps | -11 -10 -10 ------- Run | Yrd Mat Sub Traps Triggered . | . . . Indirectly . | . . . Trap Hack Attempts . | . . . Triggered . | . . . Disarmed . | . . . Reprogrammed . | . . . Reused . | . . . Traps Extracted . | . . . Installed . | . . . Triggered . | . . . Machines | -11 -10 -10 ---------- Run | Yrd Mat Sub Machines Disabled 1 | . 1 . Max in Single Turn 1 | . 1 . Machines Repaired . | . . . Machines Dismantled . | . . . Machines Sabotaged . | . . . Overloaded Fab Kills . | . . . Hacking | -11 -10 -10 --------- Run | Yrd Mat Sub Machines Accessed 9 | . 9 . Terminals 7 | . 7 . Fabricators . | . . . Repair Stations . | . . . Recycling Units 2 | . 2 . Scanalyzers . | . . . Garrison Access . | . . . Total Hacks 36 | . 36 . Successful 19 | . 19 . Failed 17 | . 17 . Catastrophic 1 | . 1 . Database Lockouts . | . . . Manual 26 | . 26 . Terminals 34 | . 34 . Fabricators . | . . . Repair Stations . | . . . Recycling Units 2 | . 2 . Scanalyzers . | . . . Garrison Access . | . . . Terminal Hacks 8 | . 8 . Robot Analysis 2 | . 2 . Prototype ID Bank 1 | . 1 . Terminal Index 1 | . 1 . Recycling Unit Index 1 | . 1 . Alert Level 1 | . 1 . Unreport Threat 1 | . 1 . Locate Traps 1 | . 1 . Fabricator Hacks . | . . . Repair Station Hacks . | . . . Recycling Unit Hacks . | . . . Scanalyzer . | . . . Garrison Access Hacks . | . . . Unauthorized Hacks 11 | . 11 . Terminals 9 | . 9 . Botnet 2 | . 2 . Skim 7 | . 7 . Fabricators . | . . . Repair Stations . | . . . Recycling Units 2 | . 2 . Tunnel 2 | . 2 . Scanalyzers . | . . . Garrison Access . | . . . Data Cores Recovered . | . . . Used . | . . . Hacking Detections 6 | . 6 . Full Trace Events 1 | . 1 . Feedback Events . | . . . Feedback Blocked . | . . . Robot Schematics Acquired . | . . . Robots Built . | . . . Authchips . | . . . Time . | . . . Total Robot Build Rating . | . . . Part Schematics Acquired . | . . . Parts Built . | . . . Authchips . | . . . Time . | . . . Total Part Build Rating . | . . . Parts Repaired . | . . . Time . | . . . Parts Recycled . | . . . Recycled Matter . | . . . Retrieved Matter . | . . . Retrieved Components . | . . . Parts Scanalyzed . | . . . Part Schematics Acquired . | . . . Parts Damaged . | . . . Bothacking | -11 -10 -10 ------------ Run | Yrd Mat Sub Used RIF Installer . | . . . Robots Hacked . | . . . Non-combat . | . . . Combat . | . . . Robot Hacks Applied . | . . . Relay Couplers Released . | . . . Fabnet Peak Effective % . | . . . Robots Rewired . | . . . Allies Hacked . | . . . Hacks Repelled . | . . . Allies | -11 -10 -10 -------- Run | Yrd Mat Sub Total Allies . | . . . Largest Group . | . . . Highest-Rated Group . | . . . Highest-Rated Ally . | . . . Total Orders . | . . . Ally Attacks . | . . . Total Damage . | . . . Kills . | . . . Allies Corrupted . | . . . Allies Melted . | . . . Intel | -11 -10 -10 ------- Run | Yrd Mat Sub Robot Analysis Total 2 | . 2 . Derelict Logs Recovered 2 | . . 2 Drone Launches . | . . . Drone Recoveries . | . . . Exploration | -11 -10 -10 ------------- Run | Yrd Mat Sub Turns Passed 2723 | 122 2209 392 Spaces Moved 774 | 63 525 186 Core 4 | 4 . . Treads 71 | 59 12 . Legs . | . . . Wheels 699 | . 513 186 Hover . | . . . Flight . | . . . Fastest Speed 50 | 50 160 175 Average Speed 201 | 154 216 175 Slowest Speed 250 | 160 250 175 Overloaded Moves . | . . . Propulsion Burnouts . | . . . Robots Hopped . | . . . Cave-ins Triggered . | . . . Exploration Rate (%) 32 | 6 80 10 Regions Visited 2 Branch Regions 1 Pre-discovered Areas 4 | . 4 . Known Exits Taken 1 | . 1 . Unknown Exits Taken 1 | 1 . . Scrap Searched . | . . . Spaces Dug . | . . . Terrain Destroyed . | . . . Melee . | . . . Projectile . | . . . AOE . | . . . Terrain Rammed . | . . . Walls Destroyed . | . . . Machines Disabled . | . . . Actions | -11 -10 -10 --------- Run | Yrd Mat Sub Total 1763 | 79 1465 219 Wait 863 | 2 853 8 Move 772 | 62 524 186 Hop . | . . . Pick Up 17 | 6 10 1 Fast Attach 9 | 6 3 . Attach 5 | . 3 2 Detach . | . . . Swap 5 | . 4 1 Drop 2 | . 2 . Fire 90 | 3 66 21 Melee . | . . . Ram . | . . . Kick . | . . . Crush . | . . . Escape Stasis . | . . . Rewire . | . . . Trap . | . . . Miscellaneous . | . . . Route ------- -11/Scrapyard -10/Materials (discovered 6 exits: *Mat x3 / [*Min x2] / *Sub) -10/Subcaves (discovered 2 exits: Mat x2) History --------- Turn | Location | Event 13 | -11/Scrapyard | Discovered new exit (range 16) 123 | -11/Scrapyard | Entered Materials 214 | -10/Materials | Discovered new exit (range 15) 307 | -10/Materials | Build established: Mutant 536 | -10/Materials | Discovered new exit (range 15) 791 | -10/Materials | Discovered new exit (range 8) 915 | -10/Materials | Discovered new exit (range 15) 1318 | -10/Materials | Discovered new exit (range 5) 1514 | -10/Materials | Learned 2 Storage zone layouts 1581 | -10/Materials | Loaded intel: 1 repair station location 1639 | -10/Materials | Learned 2 Mines zone layouts 1685 | -10/Materials | Learned 4 Recycling zone layouts 1722 | -10/Materials | Learned location of 2 exits from Subcaves 1748 | -10/Materials | Learned location of Subcaves (-10) 1784 | -10/Materials | Identified exit to Subcaves 1832 | -10/Materials | Learned location of Storage (-8) 1892 | -10/Materials | Identified exit to Materials 2332 | -10/Materials | Entered Subcaves 2333 | -10/Subcaves | Identified exit to Materials 2425 | -10/Subcaves | Learned location of 1 exit from Materials 2537 | -10/Subcaves | Core integrity fell below 50% 2558 | -10/Subcaves | Core integrity fell below 20% 2573 | -10/Subcaves | Lost 3 parts (1n1u1w) 2724 | -10/Subcaves | Destroyed by LR-V05(R) with Subdweller Laser Last Messages --------------- 02425_ Acquired derelict log, extracted data. Data stored: Materials exits (x1). 02446_ Acquired derelict log, extracted data. Data stored: Storage entrances (x1). 02518_ Lgt. Treads destroyed. 02532_ Assault Rifle destroyed. 02542_ Lrg. Matter Pod destroyed. 02547_ MY-3XX(R) destroyed. 02547_ Switching to secondary target: 7E-S2H(R). 02550_ 7E-S2H(R) affixes Scrap Shield Fragment to Scrap Shield. 02558_ Subatomizers dissect the Sub. Optics. 02560_ 7E-S2H(R) suffers critical hit (Destroy). 02563_ 7E-S2H(R) destroyed. 02569_ Acquired 26 matter. 02572_ Subatomizers dissect the Sub. Optics. 02574_ Acquired Sub. Optics. MC-8EI(R) emerges from concealment. 02717_ FK-0M6(R) suffers critical hit (Destroy). 02722_ FK-0M6(R) destroyed. Map ----- +----------------------------------------------------+ | ??????????????????????##?????????????????????????? | | ??????????????????#### #?????????????????????????? | | ??????????###?????# #?????????????????????????? | | ??????????# ##???## ##????????????????????????? | | ?????####?# ##### #????????????????????????? | | ?????# ### ## ##???????????????????????? | | ?????# ## ## #???????????????????????? | | ?????# ## #???????????????????????? | | ####??# #?# ##???????????????????????? | | # "#### ### # ##????????????#########???? | | " " ## ## ##????????????## ## ##??? | | ##???????????## ##?? | | ## #??####????## #?? | | ##### # ##### ####?# #### ##? | | ##???# & ## # # ### ##??# #? | | ##????# ##%& ## ####???# ## | | # ##?????## ###& #### #??????## # | | ###???????###?## ### # ## ##??## ##??????# | | ???????????????###?## #????# ##????## ## | | ????????????????????# ##???# ##??## ## | | ????????????????????# ##?## #??# | | ????????????????????## ### #### | | ?????????????????????## ### # | | ??????????????????????# ###### ##### # | | ??????????????????????# &= ##?## ##???? # | | ??????????????????????## @&%R ##??# #????? # | | ???????????????????????## ##! ##???# #????? # | | ????????????????????????##### ##?#### #??????# | | ??????????????????????????# #?# #??????? | | ??????????????????????????## ## ## #?? | | ???????????????????????##### ####### # | | ???????????????????????# ##?????## ## | | ??????????????????????# #????????# ###? | | ?????????????????????# #?????????# ##??? | | ?????????????????????# ## #??????????##???? | | ???????????????????? " ?? ##???????????????? | | ??????????????????""" "" ??###????????????????? | | ??????????????????"""" ""?????????????????????? | | ???????????????????"" ##"?????????????????????? | | ???????????????????" #?#"?????????????????????? | | ?????????????????? ??##?????????????????????? | | ?????????????????? ??????????????????????????? | | ????????????????? ???????????????????????????? | | ??????????????????? ?????????????????????????????? | | ?????????????????????????????????????????????????? | | ?????????????????????????????????????????????????? | | ?????????????????????????????????????????????????? | | ?????????????????????????????????????????????????? | | ?????????????????????????????????????????????????? | | ?????????????????????????????????????????????????? | +----------------------------------------------------+ Best States ------------- Heat Dissipation 25 Energy Generation 10 Energy Capacity 250 Matter Stores 445 Matter Capacity 450 Sight Range 16 Terrain Scan Density 10 Armor Coverage 150 Evasion (%) 40 Recoil Reduction 2 Item Schematics ----------------- None Robot Schematics ------------------ None Fabricated ------------ Nothing Alien Tech Used ----------------- None Achievements -------------- None Challenges ------------ None Game ------ Seed LargePlatingStreamer Manual? 0 Play Time 00:13:50 Cumulative 130.5 hours Start 2024.09.03 @ 13:33:42 End 2024.09.03 @ 13:46:33 Sessions 1 Manual Loads 0 Difficulty Rogue Special Mode None Game No. 87 Rogue 87 Adventurer 0 Explorer 0 Win Type - Total 4 Types 4/0/0/0/0/0/0/0/0 Lore% 57 Gallery% 60 Achievement% 55 Wizard Run 0 Options --------- Layout 1 ASCII 0 Keyboard 0 Movement Mouse Keybinds 0 Fullscreen 1 Font 24/Smallcaps Map View 50x35 Zoom Use 0% Tactical HUD 1 Map Filters NONE Filters NONE Steam 1 RUN: 6cdb564c-4aef-4c49-b05e-75e7612fa796